bitfinex/quotes_BTCUSD_20240717
["timestamp","ask_amount","ask_price","bid_price","bid_amount"]
[1721240759475,0.00083,64554.0,64553.0,3.60181168]
[1721240759673,0.00083,64554.0,64553.0,3.23423584]
[1721240759987,0.00083,64554.0,64553.0,3.55570846]
[1721240760196,0.00083,64554.0,64553.0,3.55570559]
[1721240760378,0.00083,64554.0,64553.0,3.60184212]
[1721240760581,0.00083,64554.0,64553.0,3.55570559]
[1721240761414,0.00083,64554.0,64553.0,3.55571051]
[1721240762018,0.00083,64554.0,64553.0,3.16994132]
[1721240762227,0.00083,64554.0,64553.0,3.55571051]
[1721240763886,0.00083,64554.0,64553.0,4.21184957]
[1721240764015,0.00083,64554.0,64553.0,4.52167157]
[1721240764374,0.00083,64554.0,64553.0,4.47553251]
[1721240764572,0.00083,64554.0,64553.0,3.86553251]
[1721240764877,0.00083,64554.0,64553.0,4.61553251]
[1721240765035,0.00083,64554.0,64553.0,4.30571051]
[1721240765255,0.00083,64554.0,64553.0,4.30570751]
[1721240765464,0.00083,64554.0,64553.0,4.61552951]
[1721240767097,0.00083,64554.0,64553.0,4.66166575]
[1721240768361,0.00083,64554.0,64553.0,4.22976332]
[1721240768526,0.00083,64554.0,64553.0,4.66166297]
[1721240768898,0.00083,64554.0,64553.0,4.5330762]
[1721240769101,0.00083,64554.0,64553.0,4.66166297]
[1721240769401,0.00083,64554.0,64553.0,4.66257597]
[1721240770369,0.00083,64554.0,64553.0,4.61643662]
[1721240771369,0.00083,64554.0,64553.0,4.68564565]
[1721240771696,0.00083,64554.0,64553.0,4.6856706]
[1721240772033,0.00083,64554.0,64553.0,4.3758486]
[1721240772373,0.00083,64554.0,64553.0,3.96921075]
[1721240772576,0.14513,64554.0,64553.0,0.9181182]
[1721240772801,0.14513,64554.0,64553.0,0.65274277]
[1721240773023,0.14513,64554.0,64553.0,0.6147745]
[1721240773153,0.14513,64554.0,64553.0,0.9245965]
[1721240773354,0.14513,64554.0,64553.0,0.4598635]
[1721240773553,0.14513,64554.0,64553.0,0.6147745]
[1721240773775,0.14513,64554.0,64553.0,1.0130965]
[1721240773980,0.14513,64554.0,64553.0,1.2949185]
[1721240774208,0.14513,64554.0,64553.0,1.52035523]
[1721240774209,0.00083,64554.0,64553.0,1.52035523]
[1721240774410,0.00083,64554.0,64553.0,2.03017723]
[1721240774606,0.00083,64554.0,64553.0,1.99765352]
[1721240774926,0.00083,64554.0,64553.0,3.72153547]
[1721240775134,0.00083,64554.0,64553.0,3.75853547]
[1721240775330,0.00083,64554.0,64553.0,3.74453547]
[1721240775527,0.00083,64554.0,64553.0,3.73053547]
[1721240775917,0.00083,64554.0,64553.0,3.74453547]
[1721240776550,0.00083,64554.0,64553.0,5.25853547]
[1721240777005,0.00083,64554.0,64553.0,5.24453547]
[1721240777194,0.00083,64554.0,64553.0,5.25853547]
[1721240777610,0.00083,64554.0,64553.0,4.59366792]
[1721240777810,0.00083,64554.0,64553.0,5.24448009]
[1721240778093,0.00083,64554.0,64553.0,4.85873051]
[1721240778243,0.00083,64554.0,64553.0,5.25848011]
[1721240778454,0.00083,64554.0,64553.0,1.51579032]
[1721240778861,0.00083,64554.0,64553.0,1.64941322]
[1721240779084,0.00083,64554.0,64553.0,1.58008668]
[1721240779258,0.00083,64554.0,64553.0,1.87186651]
[1721240779459,0.00083,64554.0,64553.0,1.56204451]
[1721240779883,0.00083,64554.0,64553.0,1.51581912]
[1721240780042,0.00083,64554.0,64553.0,1.82564112]
[1721240780244,0.00083,64554.0,64553.0,1.73714112]
[1721240780496,0.00083,64554.0,64553.0,1.42731912]
[1721240780721,0.00083,64554.0,64553.0,1.10583232]
[1721240780923,0.00083,64554.0,64553.0,1.42732418]
[1721240781418,0.00083,64554.0,64553.0,1.47354746]
[1721240781632,0.00083,64554.0,64553.0,1.42732418]
[1721240782949,0.00083,64554.0,64553.0,2.14732418]
[1721240783150,0.00083,64554.0,64553.0,2.36979897]
[1721240783490,0.00083,64554.0,64553.0,2.48014618]
[1721240783700,0.00083,64554.0,64553.0,3.98014618]
[1721240783912,0.00083,64554.0,64553.0,3.65865432]
[1721240784073,0.00083,64554.0,64553.0,4.04444159]
[1721240784478,0.14513,64554.0,64553.0,1.49161959]
[1721240784701,0.14513,64554.0,64553.0,1.18179759]
[1721240784702,0.14420668,64554.0,64553.0,1.18179759]
[1721240784875,0.14420668,64554.0,64553.0,1.18179997]
[1721240785091,0.14420668,64554.0,64553.0,1.76890473]
[1721240785865,0.14420668,64554.0,64553.0,0.92460714]
[1721240786052,0.14420668,64554.0,64553.0,1.18179581]
[1721240786191,0.14420668,64554.0,64553.0,1.11749822]
[1721240787050,0.14420668,64554.0,64553.0,0.79601032]
[1721240787190,0.14420668,64554.0,64553.0,1.11749852]
[1721240787643,0.1437421,64554.0,64553.0,1.11749852]
[1721240787844,0.14327775,64554.0,64553.0,1.11749852]
[1721240788070,0.14327775,64554.0,64553.0,1.11722552]
[1721240788447,0.14327775,64554.0,64553.0,0.55249252]
[1721240788623,0.14327775,64554.0,64553.0,0.15750828]
[1721240788841,0.14894093,64554.0,64553.0,0.15750828]
[1721240789651,0.92348593,64554.0,64553.0,0.14350828]
[1721240789986,1.23330393,64554.0,64553.0,0.000913]
[1721240790504,1.23330393,64554.0,64553.0,0.009913]
[1721240790505,1.28330393,64554.0,64553.0,0.009913]
[1721240790699,1.23330393,64554.0,64553.0,0.000913]
[1721240791016,1.23430393,64554.0,64553.0,0.009913]
[1721240791651,1.23430393,64554.0,64553.0,0.001913]
[1721240791834,1.23630393,64554.0,64553.0,0.002913]
[1721240793083,1.23530393,64554.0,64553.0,0.001913]
[1721240793502,1.23530393,64554.0,64553.0,0.002913]
[1721240793710,1.23530393,64554.0,64553.0,0.001913]
[1721240794140,1.28330393,64554.0,64553.0,0.001913]
[1721240794315,1.23330393,64554.0,64553.0,0.001913]
[1721240795336,1.23530393,64554.0,64553.0,0.002913]
[1721240795749,1.23330393,64554.0,64553.0,0.001913]
[1721240796147,1.23530393,64554.0,64553.0,0.002913]
[1721240797838,1.23483239,64554.0,64553.0,0.002913]
[1721240798186,1.23435164,64554.0,64553.0,0.002913]
[1721240798363,1.28435164,64554.0,64553.0,0.002913]
[1721240798991,1.23435164,64554.0,64553.0,0.002913]
[1721240799814,0.30489764,64554.0,64553.0,0.002913]
[1721240800019,0.14998864,64554.0,64553.0,0.002913]
[1721240800262,0.15260371,64554.0,64553.0,0.002913]
[1721240800632,0.15536312,64554.0,64553.0,0.002913]
[1721240800823,0.15536312,64554.0,64553.0,0.001913]
[1721240800824,0.15619312,64554.0,64553.0,0.001913]
[1721240801030,0.1557144,64554.0,64553.0,0.001913]
[1721240801268,0.15622863,64554.0,64553.0,0.001913]
[1721240801471,0.01486766,64554.0,64553.0,0.15629474]
[1721240801787,0.01486766,64554.0,64553.0,0.15529474]
[1721240801788,0.00183,64554.0,64553.0,0.15529474]
[1721240801990,0.00483,64554.0,64553.0,0.15529474]
[1721240802488,0.00183,64554.0,64553.0,0.15529474]
[1721240802869,0.00183,64554.0,64553.0,0.16529474]
[1721240803094,0.00083,64554.0,64553.0,0.16529474]
[1721240803305,0.00083,64554.0,64553.0,0.17529474]
[1721240804313,0.07723,64554.0,64553.0,0.17529474]
[1721240804622,0.08832977,64554.0,64553.0,0.17529474]
[1721240805022,0.01192977,64554.0,64553.0,0.17529474]
[1721240805446,0.01192977,64554.0,64553.0,0.55150574]
[1721240805660,0.00083,64554.0,64553.0,1.36126191]
[1721240805988,0.00083,64554.0,64553.0,1.67108391]
[1721240806182,0.00083,64554.0,64553.0,1.56547174]
[1721240806389,0.00083,64554.0,64553.0,1.69407108]
[1721240806604,0.00083,64554.0,64553.0,1.87077108]
[1721240807716,0.00083,64554.0,64553.0,1.85077108]
[1721240808091,0.00083,64554.0,64553.0,1.87877108]
[1721240809201,0.00083,64554.0,64553.0,1.75017174]
[1721240809584,0.00083,64554.0,64553.0,1.87876289]
[1721240810898,0.00083,64554.0,64553.0,2.46811467]
[1721240811635,0.00083,64554.0,64553.0,3.6764531]
[1721240811858,0.00083,64554.0,64553.0,3.65793667]
[1721240812263,0.00083,64554.0,64553.0,5.15793667]
[1721240812463,0.00083,64554.0,64553.0,5.01534552]
[1721240812662,0.00083,64554.0,64553.0,5.14392778]
[1721240813041,0.00083,64554.0,64553.0,5.15792778]
[1721240814648,0.00083,64554.0,64553.0,5.17192778]
[1721240814854,0.00083,64554.0,64553.0,5.15792778]
[1721240815058,0.00083,64554.0,64553.0,5.10792778]
[1721240815269,0.00083,64554.0,64553.0,5.12192778]
[1721240815784,0.00083,64554.0,64553.0,5.17192778]
[1721240816185,0.00083,64554.0,64553.0,5.12192778]
[1721240816385,0.00083,64554.0,64553.0,5.17192778]
[1721240816627,0.00083,64554.0,64553.0,5.12192778]
[1721240816835,0.00083,64554.0,64553.0,2.66810578]
[1721240817048,0.00083,64554.0,64553.0,2.64010578]
[1721240817400,0.00083,64554.0,64553.0,2.65410578]
[1721240817605,0.00083,64554.0,64553.0,2.64010578]
[1721240818072,0.00083,64554.0,64553.0,2.65410578]
[1721240818447,0.00083,64554.0,64553.0,3.45010578]
[1721240818622,0.00083,64554.0,64553.0,3.4501135]
[1721240818828,0.00083,64554.0,64553.0,3.4781135]
[1721240819036,0.00083,64554.0,64553.0,3.11691334]
[1721240819260,0.00083,64554.0,64553.0,1.36596934]
[1721240819261,0.14443,64554.0,64553.0,1.36596934]
[1721240819437,0.14443,64554.0,64553.0,1.35196934]
[1721240819866,0.14443,64554.0,64553.0,1.36596934]
[1721240820115,0.14443,64554.0,64553.0,1.35196934]
[1721240820257,0.14443,64554.0,64553.0,1.35197939]
[1721240820468,0.14443,64554.0,64553.0,1.04215739]
[1721240821072,0.14443,64554.0,64553.0,1.0561599]
[1721240821984,0.14443,64554.0,64553.0,1.3519819]
[1721240822220,0.14443,64554.0,64553.0,0.77663012]
[1721240822740,0.06293,64554.0,64553.0,0.77663012]
[1721240823430,0.00083,64554.0,64553.0,0.77663012]
[1721240823689,0.00083,64554.0,64553.0,1.08645212]
[1721240824147,0.00083,64554.0,64553.0,1.08645211]
[1721240824393,0.00083,64554.0,64553.0,1.59627411]
[1721240824600,0.00083,64554.0,64553.0,1.61927411]
[1721240825071,0.00083,64554.0,64553.0,3.11927411]
[1721240825294,0.00083,64554.0,64553.0,1.61927411]
[1721240825535,0.00083,64554.0,64553.0,1.60527411]
[1721240825792,0.00083,64554.0,64553.0,1.61927411]
[1721240826264,0.00083,64554.0,64553.0,1.60527411]
[1721240826704,0.00083,64554.0,64553.0,1.59127411]
[1721240826936,0.00083,64554.0,64553.0,1.60527411]
[1721240827251,0.00083,64554.0,64553.0,1.60526552]
[1721240827623,0.00083,64554.0,64553.0,1.47667174]
[1721240827888,0.00083,64554.0,64553.0,1.60526904]
[1721240828120,0.00083,64554.0,64553.0,1.61926904]
[1721240828278,0.00083,64554.0,64553.0,1.60526904]
[1721240828916,0.00083,64554.0,64553.0,1.61926904]
[1721240829116,0.00083,64554.0,64553.0,1.60526904]
[1721240829293,0.00083,64554.0,64553.0,1.61926904]
[1721240830129,0.00083,64554.0,64553.0,2.34926904]
[1721240830371,0.00083,64554.0,64553.0,2.22067174]
[1721240830539,0.00083,64554.0,64553.0,2.34926936]
[1721240830754,0.00083,64554.0,64553.0,2.3677885]
[1721240830959,0.00083,64554.0,64553.0,1.61926936]
[1721240831733,0.00083,64554.0,64553.0,1.83068493]
[1721240831963,0.00083,64554.0,64553.0,1.6377885]
[1721240832149,0.00083,64554.0,64553.0,2.3877885]
[1721240832353,0.00083,64554.0,64553.0,2.56216579]
[1721240832513,0.00083,64554.0,64553.0,2.38778904]
[1721240832924,0.00083,64554.0,64553.0,2.58068547]
[1721240833149,0.00083,64554.0,64553.0,2.36926936]
[1721240833369,0.00083,64554.0,64553.0,2.58068547]
[1721240833566,0.00083,64554.0,64553.0,2.58070108]
[1721240834395,0.00083,64554.0,64553.0,2.56217422]
[1721240836506,0.00083,64554.0,64553.0,2.66217422]
[1721240836863,0.00083,64554.0,64553.0,2.66215721]
[1721240837524,0.00083,64554.0,64553.0,2.97197921]
[1721240838477,0.00083,64554.0,64553.0,2.97197662]
[1721240839386,0.00083,64554.0,64553.0,3.036273]
[1721240839786,0.00083,64554.0,64553.0,2.90767548]
[1721240840134,0.00083,64554.0,64553.0,3.03626635]
[1721240841940,0.00043528,64554.0,64553.0,3.03626635]
[1721240842976,0.00043528,64554.0,64553.0,2.90767818]
[1721240843169,0.00043528,64554.0,64553.0,3.0362704]
[1721240843858,4.597e-05,64554.0,64553.0,3.0362704]
[1721240844302,4.597e-05,64554.0,64553.0,2.2862704]
[1721240844961,4.597e-05,64554.0,64553.0,3.0762704]
[1721240846184,4.597e-05,64554.0,64553.0,2.2862704]
[1721240846417,4.597e-05,64554.0,64553.0,2.33250076]
[1721240846649,4.597e-05,64554.0,64553.0,3.08251194]
[1721240847646,4.597e-05,64554.0,64553.0,3.0362704]
[1721240847844,4.597e-05,64554.0,64553.0,3.03627046]
[1721240848421,4.597e-05,64554.0,64553.0,3.10563277]
[1721240848648,4.597e-05,64554.0,64553.0,3.03627046]
[1721240848850,4.597e-05,64554.0,64553.0,3.10563277]
[1721240849382,4.597e-05,64554.0,64553.0,3.4490704]
[1721240850344,4.597e-05,64554.0,64553.0,3.46814929]
[1721240850552,4.597e-05,64554.0,64553.0,3.56071077]
[1721240852371,4.597e-05,64554.0,64553.0,3.12477072]
[1721240852570,4.597e-05,64554.0,64553.0,3.56079433]
[1721240852980,4.597e-05,64554.0,64553.0,3.55079433]
[1721240855632,4.597e-05,64554.0,64553.0,3.05047456]
[1721240855835,4.597e-05,64554.0,64553.0,3.55079696]
[1721240855981,4.597e-05,64554.0,64553.0,2.53987514]
[1721240856232,4.597e-05,64554.0,64553.0,2.86135668]
[1721240856546,4.597e-05,64554.0,64553.0,2.44003468]
[1721240856811,4.597e-05,64554.0,64553.0,2.09770551]
[1721240857010,4.597e-05,64554.0,64553.0,2.50540054]
[1721240857217,4.597e-05,64554.0,64553.0,2.44110213]
[1721240857415,4.597e-05,64554.0,64553.0,2.50539653]
[1721240858252,4.597e-05,64554.0,64553.0,2.4359042]
[1721240858730,4.597e-05,64554.0,64553.0,1.77102892]
[1721240858908,4.597e-05,64554.0,64553.0,2.43590918]
[1721240860312,4.597e-05,64554.0,64553.0,3.38157033]
[1721240860517,4.597e-05,64554.0,64553.0,4.86700918]
[1721240860917,4.597e-05,64554.0,64553.0,4.81700918]
[1721240861323,4.597e-05,64554.0,64553.0,3.43283562]
[1721240861878,4.597e-05,64554.0,64553.0,2.58783074]
[1721240862032,4.597e-05,64554.0,64553.0,3.43282125]
[1721240862751,4.597e-05,64554.0,64553.0,3.31698118]
[1721240864438,4.597e-05,64554.0,64553.0,3.62680318]
[1721240865178,4.597e-05,64554.0,64553.0,3.3053148]
[1721240865406,4.597e-05,64554.0,64553.0,3.78752095]
[1721240865644,4.597e-05,64554.0,64553.0,3.62678538]
[1721240866829,4.597e-05,64554.0,64553.0,3.62678586]
[1721240868333,4.597e-05,64554.0,64553.0,3.6267908]
[1721240868542,4.597e-05,64554.0,64553.0,5.1267908]
[1721240869019,4.597e-05,64554.0,64553.0,5.28752735]
[1721240869278,4.597e-05,64554.0,64553.0,5.1267908]
[1721240869953,4.597e-05,64554.0,64553.0,5.28752495]
[1721240870153,4.597e-05,64554.0,64553.0,5.1267908]
[1721240871362,4.597e-05,64554.0,64553.0,4.93390354]
[1721240871596,4.597e-05,64554.0,64553.0,5.12678619]
[1721240871953,4.597e-05,64554.0,64553.0,4.34678619]
[1721240872129,4.597e-05,64554.0,64553.0,5.15678619]
[1721240872551,4.597e-05,64554.0,64553.0,5.07868619]
[1721240872750,4.597e-05,64554.0,64553.0,4.26868619]
[1721240873007,4.597e-05,64554.0,64553.0,3.95886419]
[1721240873178,0.06054597,64554.0,64553.0,4.07473594]
[1721240873577,0.06054597,64554.0,64553.0,3.95886419]
[1721240873839,0.06054597,64554.0,64553.0,4.07473594]
[1721240874481,0.06054597,64554.0,64553.0,4.07473923]
[1721240874941,0.06054597,64554.0,64553.0,3.22973074]
[1721240875123,0.06054597,64554.0,64553.0,2.34740786]
[1721240875350,0.14064597,64554.0,64553.0,2.43590786]
[1721240876071,0.14064597,64554.0,64553.0,2.55179375]
[1721240876302,0.14064597,64554.0,64553.0,2.4359046]
[1721240877696,0.14064597,64554.0,64553.0,2.43590423]
[1721240879374,0.14064597,64554.0,64553.0,2.55179749]
[1721240879742,0.14064597,64554.0,64553.0,2.43590423]
[1721240880156,0.14064597,64554.0,64553.0,2.55179749]
[1721240880354,4.597e-05,64554.0,64553.0,3.31890423]
[1721240880654,4.597e-05,64554.0,64553.0,2.97551727]
[1721240880846,4.597e-05,64554.0,64553.0,3.31888571]
[1721240880979,4.597e-05,64554.0,64553.0,3.62870771]
[1721240881569,4.597e-05,64554.0,64553.0,3.31888571]
[1721240883110,4.597e-05,64554.0,64553.0,3.25458796]
[1721240883319,4.597e-05,64554.0,64553.0,3.31887522]
[1721240883768,4.597e-05,64554.0,64553.0,3.43579478]
[1721240883969,4.597e-05,64554.0,64553.0,3.62867427]
[1721240884181,4.597e-05,64554.0,64553.0,3.98210719]
[1721240884387,4.597e-05,64554.0,64553.0,4.12116657]
[1721240884785,4.597e-05,64554.0,64553.0,5.07445148]
[1721240884981,4.597e-05,64554.0,64553.0,5.62112163]
[1721240886360,4.597e-05,64554.0,64553.0,5.29962251]
[1721240886565,4.597e-05,64554.0,64553.0,5.62107177]
[1721240888615,4.597e-05,64554.0,64553.0,5.48206963]
[1721240889620,4.597e-05,64554.0,64553.0,5.48206961]
[1721240889822,4.597e-05,64554.0,64553.0,5.6210378]
[1721240890053,4.597e-05,64554.0,64553.0,5.79189161]
[1721240890373,0.05055903,64555.0,64554.0,1.634363]
[1721240890579,0.05055903,64555.0,64554.0,3.91173145]
[1721240893072,0.05055903,64555.0,64554.0,5.02011366]
[1721240893365,0.05055903,64555.0,64554.0,5.74915877]
[1721240893937,0.00835,64557.0,64556.0,1.753944]
[1721240894144,0.00835,64563.0,64562.0,1.505468]
[1721240894349,0.00835,64563.0,64562.0,2.95933097]
[1721240894477,0.00835,64563.0,64562.0,4.47038897]
[1721240894815,0.00835,64563.0,64562.0,5.92038897]
[1721240895592,0.00835,64563.0,64562.0,5.97038897]
[1721240895802,0.00835,64563.0,64562.0,5.92138956]
[1721240896920,0.00835,64563.0,64562.0,6.24516856]
[1721240897315,0.00835,64563.0,64562.0,6.19516856]
[1721240898350,0.00835,64563.0,64562.0,4.69516856]
[1721240898552,0.00835,64563.0,64562.0,4.77619856]
[1721240898752,0.00835,64563.0,64562.0,5.86862414]
[1721240898957,0.00835,64563.0,64562.0,6.27617905]
[1721240899673,0.00835,64563.0,64562.0,6.26217905]
[1721240900084,0.00835,64563.0,64562.0,6.27617905]
[1721240900649,0.00835,64563.0,64562.0,6.26217905]
[1721240900873,0.00835,64563.0,64562.0,6.27617905]
[1721240901889,0.00835,64563.0,64562.0,5.86862414]
[1721240902093,0.00835,64563.0,64562.0,6.27618647]
[1721240902521,0.00835,64563.0,64562.0,6.27618053]
[1721240903682,0.00835,64563.0,64562.0,6.27618065]
[1721240905169,0.00835,64563.0,64562.0,5.95479118]
[1721240905373,0.00835,64563.0,64562.0,6.39167127]
[1721240905544,0.00835,64563.0,64562.0,6.27618353]
[1721240905946,0.00835,64563.0,64562.0,6.31064468]
[1721240906152,0.00835,64563.0,64562.0,6.26386468]
[1721240906651,0.00835,64563.0,64562.0,6.26387024]
[1721240907124,0.00835,64563.0,64562.0,6.26385979]
[1721240907470,0.00835,64563.0,64562.0,6.14838234]
[1721240907683,0.00835,64563.0,64562.0,6.19838234]
[1721240907911,0.00835,64563.0,64562.0,6.26385979]
[1721240908153,0.00835,64563.0,64562.0,6.14838234]
[1721240908473,0.00835,64563.0,64562.0,6.14838215]
[1721240908915,0.00835,64563.0,64562.0,6.26385897]
[1721240909122,0.00835,64563.0,64562.0,6.14838215]
[1721240911544,0.00835,64563.0,64562.0,5.61736332]
[1721240911748,0.14545,64563.0,64562.0,1.96272573]
[1721240911949,0.14545,64563.0,64562.0,0.27088174]
[1721240912209,0.14545,64563.0,64562.0,0.31097138]
[1721240912421,0.15690829,64563.0,64562.0,0.31097138]
[1721240912789,0.15690829,64563.0,64562.0,0.29697138]
[1721240913620,0.15690829,64563.0,64562.0,0.28297138]
[1721240914045,0.15690829,64563.0,64562.0,0.29697138]
[1721240914543,0.15690829,64563.0,64562.0,0.18238174]
[1721240914752,0.15690829,64563.0,64562.0,0.31097759]
[1721240917569,0.15690829,64563.0,64562.0,0.15659585]
[1721240917792,0.15690829,64563.0,64562.0,0.15660532]
[1721240918566,0.15690829,64563.0,64549.0,0.309839]
[1721240918567,0.1365,64560.0,64553.0,0.000913]
[1721240918715,0.1365,64554.0,64553.0,0.000913]
[1721240919329,0.1478613,64554.0,64553.0,0.000913]
[1721240920066,0.1478613,64554.0,64553.0,0.15629474]
[1721240920279,0.1365,64554.0,64553.0,0.15629474]
[1721240920569,0.1478613,64554.0,64553.0,0.15529474]
[1721240921592,0.1488613,64554.0,64553.0,0.15529474]
[1721240921789,0.1478613,64554.0,64553.0,0.15529474]
[1721240922172,0.1488613,64554.0,64553.0,0.15629474]
[1721240922599,0.1478613,64554.0,64553.0,0.15629474]
[1721240923001,0.1478613,64554.0,64553.0,0.15729474]
[1721240923372,0.1478613,64554.0,64553.0,0.15629474]
[1721240923373,0.1365,64554.0,64553.0,0.15629474]
[1721240923820,0.14870488,64554.0,64553.0,0.16129474]
[1721240923975,0.14970488,64554.0,64553.0,0.16829474]
[1721240925279,0.1385,64554.0,64553.0,0.16829474]
[1721240925473,0.14870488,64554.0,64553.0,0.16229474]
[1721240925838,0.14970488,64554.0,64553.0,0.17029474]
[1721240926663,0.14870488,64554.0,64553.0,0.16329474]
[1721240927584,0.1375,64554.0,64553.0,0.16329474]
[1721240927789,0.1385,64554.0,64553.0,0.16329474]
[1721240927994,0.14970488,64554.0,64553.0,0.16329474]
[1721240935222,0.14970488,64554.0,64553.0,0.2919082]
[1721240935396,0.01320488,64554.0,64553.0,1.31681671]
[1721240935726,0.002,64554.0,64553.0,1.52148271]
[1721240936458,0.002,64554.0,64553.0,2.23287174]
[1721240936644,0.002,64554.0,64553.0,1.52147039]
[1721240936839,0.002,64554.0,64553.0,2.71429239]
[1721240937038,0.002,64554.0,64553.0,2.81429239]
[1721240937240,0.002,64554.0,64553.0,3.00719037]
[1721240937443,0.001,64554.0,64553.0,3.00719037]
[1721240937649,0.001,64554.0,64553.0,3.05719037]
[1721240937849,0.002,64554.0,64553.0,3.06519037]
[1721240938060,0.002,64554.0,64553.0,3.37501237]
[1721240938263,0.025,64557.0,64556.0,1.644136]
[1721240938471,0.025,64557.0,64556.0,3.12721437]
[1721240939430,0.025,64557.0,64556.0,3.14121437]
[1721240939610,0.025,64557.0,64556.0,3.14113629]
[1721240940032,0.025,64557.0,64556.0,3.12713379]
[1721240940256,0.025,64557.0,64556.0,3.14113379]
[1721240940658,0.025,64557.0,64556.0,3.15513379]
[1721240941418,0.025,64557.0,64556.0,4.81584318]
[1721240941905,0.025,64557.0,64556.0,4.49442713]
[1721240942057,0.025,64557.0,64556.0,4.65513581]
[1721240942948,0.025,64557.0,64556.0,5.20272539]
[1721240943158,0.00835,64563.0,64562.0,1.365246]
[1721240943440,0.00835,64563.0,64562.0,3.80100381]
[1721240943588,0.00835,64563.0,64562.0,3.44122481]
[1721240944204,0.00835,64563.0,64562.0,4.95522481]
[1721240944763,0.00835,64563.0,64562.0,4.94122481]
[1721240945098,0.00835,64563.0,64562.0,4.94120779]
[1721240946221,0.00835,64563.0,64562.0,4.95520779]
[1721240946421,0.00835,64563.0,64562.0,4.96920779]
[1721240946629,0.00835,64563.0,64562.0,4.95520779]
[1721240946860,0.00835,64563.0,64562.0,4.96920779]
[1721240947064,0.00835,64563.0,64562.0,4.95520779]
[1721240947267,0.00835,64563.0,64562.0,4.96920779]
[1721240947816,0.00835,64563.0,64562.0,4.77636716]
[1721240948025,0.00835,64563.0,64562.0,5.46920779]
[1721240948198,0.00835,64563.0,64562.0,5.2763677]
[1721240949715,0.00835,64563.0,64562.0,5.51920915]
[1721240949928,0.00835,64563.0,64562.0,5.6361467]
[1721240950093,0.00835,64563.0,64562.0,5.82898815]
[1721240951301,0.00835,64563.0,64562.0,5.45758574]
[1721240951507,0.00835,64563.0,64562.0,5.77897362]
[1721240951888,0.00835,64563.0,64562.0,5.82897362]
[1721240952720,0.00835,64563.0,64562.0,5.63614089]
[1721240952916,0.00835,64563.0,64562.0,5.82897362]
[1721240953119,1e-08,64563.0,64562.0,5.82897362]
[1721240953717,1e-08,64563.0,64562.0,5.63614089]
[1721240954051,1e-08,64563.0,64562.0,5.82897362]
[1721240954312,1e-08,64563.0,64562.0,5.63614089]
[1721240954506,1e-08,64563.0,64562.0,5.50758574]
[1721240954706,1e-08,64563.0,64562.0,5.82897362]
[1721240955183,1e-08,64563.0,64562.0,5.87501882]
[1721240957732,1e-08,64563.0,64562.0,5.68215449]
[1721240957887,1e-08,64563.0,64562.0,5.87498199]
[1721240958090,1e-08,64563.0,64562.0,5.50758574]
[1721240958309,1e-08,64563.0,64562.0,5.82896491]
[1721240960377,1e-08,64563.0,64562.0,5.69606491]
[1721240960788,1e-08,64563.0,64562.0,5.37468574]
[1721240960990,1e-08,64563.0,64562.0,5.69606491]
[1721240961189,0.00065365,64563.0,64562.0,5.69606491]
[1721240963349,0.00065365,64563.0,64562.0,5.8567541]
[1721240964050,0.00065365,64563.0,64562.0,5.85675313]
[1721240964251,0.00065365,64563.0,64562.0,5.90760613]
[1721240966630,0.02163939,64581.0,64571.0,0.8305]
[1721240966833,0.46304871,64580.0,64571.0,2.96292198]
[1721240967093,0.02163939,64581.0,64571.0,3.37265798]
[1721240967259,0.02163939,64581.0,64571.0,3.67078293]
[1721240967425,0.02163939,64581.0,64571.0,5.49212983]
[1721240967626,0.02163939,64581.0,64571.0,5.48051893]
[1721240967882,0.05224373,64572.0,64571.0,5.82986343]
[1721240968418,0.02163939,64581.0,64573.0,1.593767]
[1721240968627,0.02163939,64581.0,64573.0,3.06318243]
[1721240968974,0.02163939,64581.0,64573.0,3.06318383]
[1721240970203,0.02163939,64581.0,64573.0,2.56976864]
[1721240970204,0.09136361,64574.0,64573.0,2.56976864]
[1721240970414,0.09136361,64574.0,64573.0,2.65819711]
[1721240970617,0.09136361,64574.0,64573.0,1.96219711]
[1721240970952,0.09136361,64574.0,64573.0,1.97619711]
[1721240971759,0.09136361,64574.0,64573.0,3.10592311]
[1721240971760,0.01136361,64574.0,64573.0,3.10592311]
[1721240972310,0.01136361,64574.0,64573.0,3.12892311]
[1721240972964,0.01136361,64574.0,64573.0,2.81919711]
[1721240973124,0.01136361,64574.0,64573.0,1.99919711]
[1721240973644,0.01136361,64574.0,64573.0,1.99919894]
[1721240974050,0.14766361,64574.0,64573.0,1.91079894]
[1721240974387,0.14766361,64574.0,64573.0,1.99919894]
[1721240976627,0.14766361,64574.0,64573.0,1.67782274]
[1721240976790,0.14766361,64574.0,64573.0,1.99921572]
[1721240977166,0.14766361,64574.0,64573.0,2.50782274]
[1721240977355,0.14766361,64574.0,64573.0,2.82921571]
[1721240979821,0.14766361,64574.0,64573.0,2.82920909]
[1721240980645,0.01136361,64574.0,64573.0,2.82920909]
[1721240982158,0.01136361,64574.0,64573.0,3.17248627]
[1721240983007,0.01136361,64574.0,64573.0,3.1724853]
[1721240983213,0.01136361,64574.0,64573.0,3.26489973]
[1721240984604,0.01136361,64574.0,64573.0,4.76489973]
[1721240985047,0.01136361,64574.0,64573.0,3.26489973]
[1721240986031,0.01136361,64574.0,64573.0,2.50782274]
[1721240986243,0.01136361,64574.0,64573.0,3.2880629]
[1721240986480,0.01136361,64574.0,64573.0,3.17245414]
[1721240986691,0.01136361,64574.0,64573.0,3.5977473]
[1721240987776,0.01136361,64574.0,64573.0,3.5977504]
[1721240988179,0.01136361,64574.0,64573.0,3.2880244]
[1721240988381,0.15556361,64574.0,64573.0,3.17651592]
[1721240988606,0.15556361,64574.0,64573.0,3.26491592]
[1721240989176,0.15556361,64574.0,64573.0,2.85110064]
[1721240989397,0.15556361,64574.0,64573.0,3.17248722]
[1721240989601,0.15556361,64574.0,64573.0,3.24185181]
[1721240990272,0.15556361,64574.0,64573.0,3.2649698]
[1721240990473,0.15556361,64574.0,64573.0,3.17248722]
[1721240990959,0.01136361,64574.0,64573.0,3.17248722]
[1721240991310,0.01136361,64574.0,64573.0,3.26496679]
[1721240991722,0.01136361,64574.0,64573.0,3.17248722]
[1721240992179,0.01136361,64574.0,64573.0,3.26497127]
[1721240992419,0.01136361,64574.0,64573.0,3.17246735]
[1721240992420,0.01219361,64574.0,64573.0,3.17246735]
[1721240993587,0.01219361,64574.0,64573.0,3.59779792]
[1721240995430,0.01219361,64574.0,64573.0,2.81754874]
[1721240995624,0.01219361,64574.0,64573.0,3.48218707]
[1721240995910,0.01219361,64574.0,64573.0,4.98218707]
[1721240996110,0.01219361,64574.0,64573.0,5.09780483]
[1721240996665,0.01219361,64574.0,64573.0,4.67245854]
[1721240997524,0.01219361,64574.0,64573.0,3.17245854]